fUSD/lending_fUSD_20241221
["ID","MTS","AMOUNT","RATE_DAILY","PERIOD"]
[346155953,1734759049712,-1152.01,0.00021772,2]
[346155954,1734759049721,-500.0,0.00021772,2]
[346155955,1734759049730,-1874.31,0.00021772,2]
[346155956,1734759049740,-3520.46,0.00021772,2]
[346155957,1734759049749,-500.0,0.00021772,2]
[346155958,1734759049760,-1947.22,0.00021772,2]
[346155959,1734759049772,-2723.37,0.00021772,2]
[346155960,1734759049781,-2290.09,0.00021772,2]
[346155961,1734759049790,-3320.1,0.00021772,2]
[346155962,1734759049800,-1578.36,0.00021772,2]
[346155963,1734759049810,-2651.6,0.00021772,2]
[346155964,1734759049819,-2360.05,0.00021772,2]
[346155965,1734759049828,-4197.33,0.00021772,2]
[346155966,1734759049970,-587.14,0.00021772,2]
[346155967,1734759049979,-1655.11,0.00021772,2]
[346155968,1734759049988,-500.0,0.00021772,2]
[346155969,1734759049997,-541.53,0.00021772,2]
[346155970,1734759050007,-500.0,0.00021772,2]
[346155971,1734759050016,-1536.83,0.00021772,2]
[346155972,1734759050025,-14181.83,0.00021772,2]
[346155973,1734759050034,-655.16,0.00021772,2]
[346155974,1734759050044,-500.0,0.00021772,2]
[346155975,1734759050053,-500.0,0.00021772,2]
[346155976,1734759050062,-1338.85,0.00021772,2]
[346155977,1734759050071,-1366.63,0.00021772,2]
[346155978,1734759050080,-500.0,0.00021772,2]
[346155979,1734759050089,-500.0,0.00021772,2]
[346155980,1734759050098,-1505.35,0.00021772,2]
[346155981,1734759050107,-1051.77,0.00021772,2]
[346155982,1734759050117,-2733.37,0.00021773,2]
[346155983,1734759050126,-500.0,0.00021773,2]
[346155984,1734759050135,-802.3,0.00021773,2]
[346155985,1734759050144,-1729.788986,0.00021773,2]
[346155986,1734759050154,-923.35,0.00021773,2]
[346155987,1734759050163,-1956.98,0.00021773,2]
[346155988,1734759050172,-961.34,0.00021773,2]
[346155989,1734759050181,-1572.43,0.00021773,2]
[346155990,1734759050190,-2516.246787,0.00021773,2]
[346155991,1734759050199,-500.0,0.00021773,2]
[346155992,1734759050208,-2832.91,0.00021773,2]
[346155993,1734759050217,-1456.86,0.00021773,2]
[346155994,1734759050227,-695.74,0.00021773,2]
[346155995,1734759050235,-908.49,0.00021773,2]
[346155996,1734759050245,-2895.1,0.00021773,2]
[346155997,1734759050253,-500.0,0.00021773,2]
[346155998,1734759050263,-1201.85,0.00021773,2]
[346155999,1734759050272,-500.0,0.00021773,2]
[346156000,1734759050282,-500.0,0.00021773,2]
[346156001,1734759050292,-1104.51,0.00021773,2]
[346156002,1734759050301,-11462.66,0.00021773,2]
[346156003,1734759050311,-1550.12,0.00021773,2]
[346156004,1734759050322,-500.0,0.00021773,2]
[346156005,1734759050331,-1267.29,0.00021773,2]
[346156006,1734759050340,-1078.56,0.00021773,2]
[346156007,1734759050349,-500.0,0.00021773,2]
[346156008,1734759050358,-500.0,0.00021773,2]
[346156009,1734759050368,-1599.21,0.00021773,2]
[346156010,1734759050377,-11530.12,0.00021773,2]
[346156011,1734759050386,-500.0,0.00021773,2]
[346156012,1734759050397,-3155.1,0.00021773,2]
[346156013,1734759050406,-510.15510795,0.00021795,2]
[346156014,1734759050416,-660.76,0.00021795,2]
[346156015,1734759050426,-500.0,0.00021795,2]
[346156016,1734759050435,-500.0,0.00021795,2]
[346156017,1734759050444,-500.0,0.00021795,2]
[346156018,1734759050453,-1109.43,0.00021795,2]
[346156019,1734759050462,-500.0,0.00021795,2]
[346156020,1734759050471,-500.0,0.00021795,2]
[346156021,1734759050480,-500.0,0.00021795,2]
[346156022,1734759050489,-503.91297768,0.00021795,2]
[346156023,1734759050498,-500.0,0.00021795,2]
[346156024,1734759050507,-500.0,0.00021795,2]
[346156025,1734759050517,-535.02,0.00021795,2]
[346156026,1734759050526,-500.0,0.00021795,2]
[346156027,1734759050535,-500.0,0.00021795,2]
[346156028,1734759050544,-500.0,0.00021795,2]
[346156029,1734759050553,-500.0,0.00021795,2]
[346156030,1734759050562,-1078.6,0.00021795,2]
[346156031,1734759050572,-500.0,0.00021795,2]
[346156032,1734759050581,-500.0,0.00021795,2]
[346156033,1734759050590,-500.0,0.00021795,2]
[346156034,1734759050599,-879.91,0.00021795,2]
[346156035,1734759050608,-500.0,0.00021795,2]
[346156036,1734759050617,-500.0,0.00021795,2]
[346156037,1734759050627,-1115.0,0.00021795,2]
[346156038,1734759050637,-500.0,0.00021795,2]
[346156039,1734759050646,-500.0,0.00021795,2]
[346156040,1734759050655,-503.98611065,0.00021795,2]
[346156041,1734759050664,-500.0,0.00021795,2]
[346156042,1734759050674,-696.85,0.00021795,2]
[346156043,1734759050684,-500.0,0.00021795,2]
[346156044,1734759050693,-185.74260653,0.00021795,2]
[346156045,1734759050702,-667.69,0.00021795,2]
[346156046,1734759050711,-495.77971374,0.00021795,2]
[346156047,1734759050720,-500.0,0.00021795,2]
[346156048,1734759050729,-500.0,0.00021795,2]
[346156049,1734759050738,-229.33927114,0.00021795,2]
[346156050,1734759050747,-500.0,0.00021795,2]
[346156051,1734759050756,-558.19,0.00021795,2]
[346156052,1734759050771,-893.89,0.00021795,2]
[346156053,1734759050780,-503.62718642,0.00021795,2]
[346156054,1734759050789,-500.0,0.00021795,2]
[346156055,1734759050799,-626.49568031,0.00021795,2]
[346156056,1734759050809,-500.0,0.00021795,2]
[346156057,1734759050819,-418.60923947,0.00021795,2]
[346156058,1734759050828,-500.0,0.00021795,2]
[346156059,1734759050838,-865.15,0.00021795,2]
[346156060,1734759050848,-500.0,0.00021795,2]
[346156061,1734759050862,-500.0,0.00021795,2]
[346156062,1734759050871,-500.0,0.00021795,2]
[346156063,1734759050881,-500.0,0.00021795,2]
[346156064,1734759050890,-500.0,0.00021795,2]
[346156065,1734759050912,-1051.6,0.00021795,2]
[346156066,1734759050929,-500.0,0.00021795,2]
[346156067,1734759050938,-500.0,0.00021795,2]
[346156068,1734759050947,-987.08,0.00021795,2]
[346156069,1734759050956,-500.0,0.00021795,2]
[346156070,1734759050965,-500.0,0.00021795,2]
[346156071,1734759050973,-500.0,0.00021795,2]
[346156072,1734759050982,-500.0,0.00021795,2]
[346156073,1734759050994,-500.0,0.00021795,2]
[346156074,1734759051003,-500.0,0.00021795,2]
[346156075,1734759051012,-500.0,0.00021795,2]
[346156076,1734759051021,-1060.21,0.00021795,2]
[346156077,1734759051030,-500.0,0.00021795,2]
[346156078,1734759051039,-499.23948345,0.00021795,2]
[346156079,1734759051055,-500.0,0.00021795,2]
[346156080,1734759051064,-500.0,0.00021795,2]
[346156081,1734759051074,-500.0,0.00021795,2]
[346156082,1734759051084,-755.08,0.00021795,2]
[346156083,1734759051094,-500.0,0.00021795,2]
[346156084,1734759051104,-500.0,0.00021795,2]
[346156085,1734759051113,-500.0,0.00021795,2]
[346156086,1734759051122,-1010.54,0.00021795,2]
[346156087,1734759051131,-501.10053808,0.00021795,2]
[346156088,1734759051140,-722.12,0.00021795,2]
[346156089,1734759051150,-687.97,0.00021795,2]
[346156090,1734759051160,-1584.02,0.00021795,2]
[346156091,1734759051170,-500.0,0.00021795,2]
[346156092,1734759051179,-1569.83,0.00021795,2]
[346156093,1734759051190,-500.0,0.00021795,2]
[346156094,1734759051200,-837.88,0.00021795,2]
[346156095,1734759051209,-500.0,0.00021795,2]
[346156096,1734759051218,-500.0,0.00021795,2]
[346156097,1734759051228,-500.0,0.00021795,2]
[346156098,1734759051237,-1032.95,0.00021795,2]
[346156099,1734759051246,-577.06,0.00021795,2]
[346156100,1734759051255,-977.93,0.00021795,2]
[346156101,1734759051264,-760.55,0.00021795,2]
[346156102,1734759051273,-500.0,0.00021795,2]
[346156103,1734759051283,-874.55,0.00021795,2]
[346156104,1734759051292,-595.64,0.00021795,2]
[346156105,1734759051302,-500.0,0.00021795,2]
[346156106,1734759051311,-542.57,0.00021795,2]
[346156107,1734759051321,-971.28,0.00021795,2]
[346156108,1734759051335,-8221.78,0.00021795,2]
[346156109,1734759051345,-723.17,0.00021795,2]
[346156110,1734759051354,-500.0,0.00021795,2]
[346156111,1734759051363,-500.0,0.00021795,2]
[346156112,1734759051372,-1694.3,0.00021795,2]
[346156113,1734759051382,-500.0,0.00021795,2]
[346156114,1734759051391,-938.17,0.00021795,2]
[346156115,1734759051400,-500.0,0.00021795,2]
[346156116,1734759051409,-500.0,0.00021795,2]
[346156117,1734759051418,-509.89987495,0.00021795,2]
[346156118,1734759051428,-806.99,0.00021795,2]
[346156119,1734759051437,-500.0,0.00021795,2]
[346156120,1734759051446,-658.97,0.00021795,2]
[346156121,1734759051455,-500.0,0.00021795,2]
[346156122,1734759051465,-500.0,0.00021795,2]
[346156123,1734759051475,-1593.84,0.00021795,2]
[346156124,1734759051486,-500.0,0.00021795,2]
[346156125,1734759051495,-2269.06,0.00021795,2]
[346156126,1734759051504,-500.0,0.00021795,2]
[346156127,1734759051513,-500.0,0.00021795,2]
[346156128,1734759051522,-2180.45,0.00021795,2]
[346156129,1734759051531,-500.0,0.00021795,2]
[346156130,1734759051540,-782.71,0.00021795,2]
[346156131,1734759051550,-935.85,0.00021795,2]
[346156132,1734759051559,-637.11,0.00021795,2]
[346156133,1734759051569,-1161.51,0.00021795,2]
[346156134,1734759051578,-500.0,0.00021795,2]
[346156135,1734759051589,-976.14,0.00021795,2]
[346156136,1734759051599,-822.66,0.00021795,2]
[346156137,1734759051608,-810.66,0.00021795,2]
[346156138,1734759051617,-1519.74,0.00021795,2]
[346156139,1734759051627,-748.18,0.00021795,2]
[346156140,1734759051636,-1636.38,0.00021795,2]
[346156141,1734759051645,-1194.49,0.00021795,2]
[346156142,1734759051654,-774.27,0.00021795,2]
[346156143,1734759051663,-898.82,0.00021795,2]
[346156144,1734759051673,-500.0,0.00021795,2]
[346156145,1734759051685,-500.0,0.00021795,2]
[346156146,1734759051694,-1342.04,0.00021795,2]
[346156147,1734759051703,-1670.59,0.00021795,2]
[346156148,1734759051712,-1868.55,0.00021795,2]
[346156149,1734759051722,-500.0,0.00021795,2]
[346156150,1734759051731,-500.0,0.00021795,2]
[346156151,1734759051740,-1073.72,0.00021795,2]
[346156152,1734759051749,-3439.14,0.00021795,2]
[346156153,1734759051759,-500.0,0.00021795,2]
[346156154,1734759051771,-500.0,0.00021795,2]
[346156155,1734759051780,-500.0,0.00021795,2]
[346156156,1734759051789,-968.83,0.00021795,2]
[346156157,1734759051800,-503.19993973,0.00021795,2]
[346156158,1734759051810,-1506.18,0.00021795,2]
[346156159,1734759051820,-501.50387687,0.00021795,2]
[346156160,1734759051830,-833.21,0.00021795,2]
[346156161,1734759051841,-500.0,0.00021795,2]
[346156162,1734759051851,-1209.23,0.00021795,2]
[346156163,1734759051860,-500.0,0.00021795,2]
[346156164,1734759051869,-500.0,0.00021795,2]
[346156165,1734759051878,-500.0,0.00021795,2]
[346156166,1734759051888,-500.0,0.00021799,2]
[346156167,1734759051897,-1123.4,0.00021799,2]
[346156168,1734759051906,-205088.78853627,0.000218,2]
[346156169,1734759051915,-300.0,0.00021808,2]
[346156170,1734759051924,-151.0,0.00021812,2]
[346156171,1734759051935,-300.0,0.0002182,2]
[346156172,1734759051944,-500.0,0.00021836,2]
[346156173,1734759051953,-1607.23,0.00021871,2]
[346156174,1734759051962,-4286.12,0.00021871,2]
[346156175,1734759051972,-4690.02,0.00021871,2]
[346156176,1734759051981,-1196.33,0.00021871,2]
[346156177,1734759052146,-500.0,0.00021871,2]
[346156178,1734759052158,-860.94,0.00021871,2]
[346156179,1734759052167,-1391.32,0.00021871,2]
[346156180,1734759052177,-1717.68,0.00021871,2]
[346156181,1734759052186,-2709.34,0.00021871,2]
[346156182,1734759052196,-1369.59,0.00021871,2]
[346156183,1734759052205,-2683.53,0.00021871,2]
[346156184,1734759052214,-2211.58,0.00021871,2]
[346156185,1734759052223,-4646.41,0.00021871,2]
[346156186,1734759052232,-3294.2,0.00021871,2]
[346156187,1734759052241,-6424.34,0.00021871,2]
[346156188,1734759052251,-2805.23,0.00021871,2]
[346156189,1734759052260,-1547.53,0.00021871,2]
[346156190,1734759052269,-500.0,0.00021872,2]
[346156191,1734759052278,-352.74398157,0.00021872,2]
[346156192,1734759052287,-500.0,0.00021872,2]
[346156193,1734759052296,-500.0,0.00021872,2]
[346156194,1734759052307,-500.0,0.00021872,2]
[346156195,1734759052317,-500.0,0.00021872,2]
[346156196,1734759052326,-500.0,0.00021872,2]
[346156197,1734759052336,-500.0,0.00021872,2]
[346156198,1734759052345,-500.0,0.00021872,2]
[346156199,1734759052355,-500.0,0.00021872,2]
[346156200,1734759052364,-500.0,0.00021872,2]
[346156201,1734759052373,-500.0,0.00021872,2]
[346156202,1734759052382,-500.0,0.00021872,2]
[346156203,1734759052392,-500.0,0.00021872,2]
[346156204,1734759052401,-500.0,0.00021872,2]
[346156205,1734759052410,-500.0,0.00021872,2]
[346156206,1734759052420,-500.0,0.00021872,2]
[346156207,1734759052430,-532.43,0.00021872,2]
[346156208,1734759052439,-500.0,0.00021872,2]
[346156209,1734759052448,-500.0,0.00021872,2]
[346156210,1734759052457,-500.0,0.00021872,2]
[346156211,1734759052466,-500.0,0.00021872,2]
[346156212,1734759052475,-500.0,0.00021872,2]
[346156213,1734759052484,-500.0,0.00021872,2]
[346156214,1734759052493,-570.67,0.00021872,2]
[346156215,1734759052503,-500.0,0.00021872,2]
[346156216,1734759052511,-500.0,0.00021872,2]
[346156217,1734759052520,-260.42102437,0.00021872,2]
[346156218,1734759052530,-507.2514103,0.00021872,2]
[346156219,1734759052539,-500.0,0.00021872,2]
[346156220,1734759052548,-500.0,0.00021872,2]
[346156221,1734759052557,-500.0,0.00021872,2]
[346156222,1734759052565,-536.37645136,0.00021872,2]
[346156223,1734759052574,-500.0,0.00021872,2]
[346156224,1734759052582,-500.0,0.00021872,2]
[346156225,1734759052592,-500.0,0.00021872,2]
[346156226,1734759052601,-500.0,0.00021872,2]
[346156227,1734759052610,-767.99,0.00021872,2]
[346156228,1734759052619,-500.0,0.00021872,2]
[346156229,1734759052628,-500.0,0.00021872,2]
[346156230,1734759052637,-500.0,0.00021872,2]
[346156231,1734759052646,-500.0,0.00021872,2]
[346156232,1734759052654,-500.0,0.00021872,2]
[346156233,1734759052663,-500.0,0.00021872,2]
[346156234,1734759052673,-500.0,0.00021872,2]
[346156235,1734759052682,-500.0,0.00021872,2]
[346156236,1734759052691,-500.0,0.00021872,2]
[346156237,1734759052701,-500.0,0.00021872,2]
[346156238,1734759052710,-500.0,0.00021872,2]
[346156239,1734759052719,-500.0,0.00021872,2]
[346156240,1734759052728,-500.0,0.00021872,2]
[346156241,1734759052737,-500.0,0.00021872,2]
[346156242,1734759052746,-500.0,0.00021872,2]
[346156243,1734759052756,-510.11353443,0.00021872,2]
[346156244,1734759052769,-500.0,0.00021872,2]
[346156245,1734759052779,-500.0,0.00021872,2]
[346156246,1734759052788,-500.0,0.00021872,2]
[346156247,1734759052798,-500.0,0.00021872,2]
[346156248,1734759052809,-500.0,0.00021872,2]
[346156249,1734759052818,-500.0,0.00021872,2]
[346156250,1734759052828,-500.0,0.00021872,2]
[346156251,1734759052838,-500.0,0.00021872,2]
[346156252,1734759052848,-500.0,0.00021872,2]
[346156253,1734759052857,-500.0,0.00021872,2]
[346156254,1734759052866,-500.0,0.00021872,2]
[346156255,1734759052875,-500.0,0.00021872,2]
[346156256,1734759052884,-506.16872799,0.00021872,2]
[346156257,1734759052893,-649.28,0.00021872,2]
[346156258,1734759052903,-500.0,0.00021872,2]
[346156259,1734759052912,-636.29,0.00021872,2]
[346156260,1734759052921,-500.0,0.00021872,2]
[346156261,1734759052930,-742.92,0.00021872,2]
[346156262,1734759052940,-200.0,0.00021872,2]
[346156263,1734759052949,-504.97754781,0.00021872,2]
[346156264,1734759052958,-500.0,0.00021872,2]
[346156265,1734759052967,-500.0,0.00021872,2]
[346156266,1734759052976,-500.0,0.00021872,2]
[346156267,1734759052985,-500.0,0.00021872,2]
[346156268,1734759052994,-625.59083481,0.00021872,2]
[346156269,1734759053003,-500.0,0.00021872,2]
[346156270,1734759053011,-500.0,0.00021872,2]
[346156271,1734759053020,-500.0,0.00021872,2]
[346156272,1734759053029,-500.0,0.00021872,2]
[346156273,1734759053038,-500.0,0.00021872,2]
[346156274,1734759053048,-500.0,0.00021872,2]
[346156275,1734759053057,-500.0,0.00021872,2]
[346156276,1734759053066,-500.0,0.00021872,2]
[346156277,1734759053075,-500.0,0.00021872,2]
[346156278,1734759053084,-500.0,0.00021872,2]
[346156279,1734759053093,-566.85,0.00021872,2]
[346156280,1734759053102,-484.93695107,0.00021872,2]
[346156281,1734759053110,-263.94802246,0.00021872,2]
[346156282,1734759053119,-507.17090318,0.00021872,2]
[346156283,1734759053129,-500.0,0.00021872,2]
[346156284,1734759053138,-556.47695101,0.00021872,2]
[346156285,1734759053147,-500.0,0.00021872,2]
[346156286,1734759053155,-500.0,0.00021872,2]
[346156287,1734759053164,-500.0,0.00021872,2]
[346156288,1734759053173,-500.0,0.00021872,2]
[346156289,1734759053182,-500.0,0.00021872,2]
[346156290,1734759053191,-912.11,0.00021872,2]
[346156291,1734759053199,-500.0,0.00021872,2]
[346156292,1734759053208,-504.18823325,0.00021872,2]
[346156293,1734759053217,-500.0,0.00021872,2]
[346156294,1734759053226,-500.0,0.00021872,2]
[346156295,1734759053235,-500.0,0.00021872,2]
[346156296,1734759053244,-262.51433246,0.00021872,2]
[346156297,1734759053254,-500.0,0.00021872,2]
[346156298,1734759053263,-500.0,0.00021872,2]
[346156299,1734759053273,-500.0,0.00021872,2]
[346156300,1734759053282,-500.0,0.00021872,2]
[346156301,1734759053291,-500.0,0.00021872,2]
[346156302,1734759053301,-500.0,0.00021872,2]
[346156303,1734759053310,-900.88,0.00021872,2]
[346156304,1734759053319,-500.0,0.00021872,2]
[346156305,1734759053329,-500.0,0.00021872,2]
[346156306,1734759053339,-500.0,0.00021872,2]
[346156307,1734759053348,-500.0,0.00021872,2]
[346156308,1734759053357,-500.0,0.00021872,2]
[346156309,1734759053366,-500.0,0.00021872,2]
[346156310,1734759053374,-500.0,0.00021872,2]
[346156311,1734759053383,-500.0,0.00021872,2]
[346156312,1734759053392,-500.0,0.00021872,2]
[346156313,1734759053402,-500.0,0.00021872,2]
[346156314,1734759053411,-500.0,0.00021872,2]
[346156315,1734759053420,-500.0,0.00021872,2]
[346156316,1734759053429,-500.0,0.00021872,2]
[346156317,1734759053438,-500.0,0.00021872,2]
[346156318,1734759053447,-500.0,0.00021872,2]
[346156319,1734759053456,-500.0,0.00021872,2]
[346156320,1734759053465,-500.0,0.00021872,2]
[346156321,1734759053474,-500.0,0.00021872,2]
[346156322,1734759053483,-500.0,0.00021872,2]
[346156323,1734759053492,-500.0,0.00021872,2]
[346156324,1734759053502,-500.0,0.00021872,2]
[346156325,1734759053510,-500.0,0.00021872,2]
[346156326,1734759053519,-500.0,0.00021872,2]
[346156327,1734759053528,-500.0,0.00021872,2]
[346156328,1734759053537,-500.0,0.00021872,2]
[346156329,1734759053546,-502.69955567,0.00021872,2]
[346156330,1734759053555,-789.06,0.00021872,2]
[346156331,1734759053564,-502.42067536,0.00021872,2]
[346156332,1734759053573,-500.0,0.00021872,2]
[346156333,1734759053582,-500.89837819,0.00021872,2]
[346156334,1734759053591,-629.28,0.00021872,2]
[346156335,1734759053599,-500.0,0.00021872,2]
[346156336,1734759053608,-500.0,0.00021872,2]
[346156337,1734759053618,-522.05705099,0.00021872,2]
[346156338,1734759053628,-500.0,0.00021872,2]
[346156339,1734759053637,-500.0,0.00021872,2]
[346156340,1734759053646,-693.72,0.00021872,2]
[346156341,1734759053655,-500.0,0.00021872,2]
[346156342,1734759053664,-510.39847248,0.00021872,2]
[346156343,1734759053673,-504.32162496,0.00021872,2]
[346156344,1734759053683,-220.53129583,0.00021872,2]
[346156345,1734759053692,-500.0,0.00021872,2]
[346156346,1734759053701,-500.0,0.00021872,2]
[346156347,1734759053710,-500.0,0.00021872,2]
[346156348,1734759053719,-500.0,0.00021872,2]
[346156349,1734759053728,-500.0,0.00021872,2]
[346156350,1734759053737,-500.0,0.00021872,2]
[346156351,1734759053747,-500.0,0.00021872,2]
[346156352,1734759053757,-500.0,0.00021872,2]
[346156353,1734759053771,-500.0,0.00021872,2]
[346156354,1734759053780,-513.39224183,0.00021872,2]
[346156355,1734759053789,-500.0,0.00021872,2]
[346156356,1734759053799,-500.0,0.00021872,2]
[346156357,1734759053810,-500.0,0.00021872,2]
[346156358,1734759053820,-502.29860227,0.00021872,2]
[346156359,1734759053829,-500.0,0.00021872,2]
[346156360,1734759053840,-500.0,0.00021872,2]
[346156361,1734759053850,-500.0,0.00021872,2]
[346156362,1734759053859,-506.36075765,0.00021872,2]
[346156363,1734759053869,-500.0,0.00021872,2]
[346156364,1734759053879,-500.0,0.00021872,2]
[346156365,1734759053888,-500.0,0.00021872,2]
[346156366,1734759053897,-500.0,0.00021872,2]
[346156367,1734759053907,-500.0,0.00021872,2]
[346156368,1734759053916,-500.0,0.00021872,2]
[346156369,1734759053926,-500.0,0.00021872,2]
[346156370,1734759053935,-500.0,0.00021872,2]
[346156371,1734759053944,-707.78,0.00021872,2]
[346156372,1734759053953,-502.73600671,0.00021872,2]
[346156373,1734759053963,-500.0,0.00021872,2]
[346156374,1734759054101,-500.0,0.00021872,2]
[346156375,1734759054110,-190.96597092,0.00021872,2]
[346156376,1734759054119,-500.0,0.00021872,2]
[346156377,1734759054128,-500.0,0.00021872,2]
[346156378,1734759054137,-500.0,0.00021872,2]
[346156379,1734759054147,-508.52255379,0.00021872,2]
[346156380,1734759054156,-500.0,0.00021872,2]
[346156381,1734759054166,-500.0,0.00021872,2]
[346156382,1734759054175,-500.0,0.00021872,2]
[346156383,1734759054184,-500.0,0.00021872,2]
[346156384,1734759054193,-500.0,0.00021872,2]
[346156385,1734759054202,-503.88811259,0.00021872,2]
[346156386,1734759054211,-500.0,0.00021872,2]
[346156387,1734759054220,-500.0,0.00021872,2]
[346156388,1734759054229,-500.0,0.00021872,2]
[346156389,1734759054238,-500.0,0.00021872,2]
[346156390,1734759054247,-500.0,0.00021872,2]
[346156391,1734759054256,-500.0,0.00021872,2]
[346156392,1734759054265,-875.68,0.00021872,2]
[346156393,1734759054275,-500.0,0.00021872,2]
[346156394,1734759054285,-500.0,0.00021872,2]
[346156395,1734759054294,-500.0,0.00021872,2]
[346156396,1734759054305,-500.0,0.00021872,2]
[346156397,1734759054314,-500.0,0.00021872,2]
[346156398,1734759054322,-500.0,0.00021872,2]
[346156399,1734759054332,-500.0,0.00021872,2]
[346156400,1734759054341,-500.0,0.00021872,2]
[346156401,1734759054351,-500.0,0.00021872,2]
[346156402,1734759054360,-500.0,0.00021872,2]
[346156403,1734759054368,-502.82974663,0.00021872,2]
[346156404,1734759054377,-755.46,0.00021872,2]
[346156405,1734759054386,-500.0,0.00021872,2]
[346156406,1734759054396,-503.22766893,0.00021872,2]
[346156407,1734759054405,-500.0,0.00021872,2]
[346156408,1734759054414,-500.0,0.00021872,2]
[346156409,1734759054423,-500.0,0.00021872,2]
[346156410,1734759054432,-500.0,0.00021872,2]
[346156411,1734759054441,-500.0,0.00021872,2]
[346156412,1734759054451,-500.0,0.00021872,2]
[346156413,1734759054460,-500.0,0.00021872,2]
[346156414,1734759054469,-500.0,0.00021872,2]
[346156415,1734759054478,-500.0,0.00021872,2]
[346156416,1734759054487,-500.0,0.00021872,2]
[346156417,1734759054496,-500.0,0.00021872,2]
[346156418,1734759054505,-500.0,0.00021872,2]
[346156419,1734759054514,-377.38862422,0.00021872,2]
[346156420,1734759054523,-500.0,0.00021872,2]
[346156421,1734759054532,-500.0,0.00021872,2]
[346156422,1734759054542,-500.0,0.00021872,2]
[346156423,1734759054553,-628.81,0.00021872,2]
[346156424,1734759054571,-500.0,0.00021872,2]
[346156425,1734759054580,-500.0,0.00021872,2]
[346156426,1734759054590,-600.03,0.00021872,2]
[346156427,1734759054599,-500.0,0.00021872,2]
[346156428,1734759054608,-500.0,0.00021872,2]
[346156429,1734759054619,-500.0,0.00021872,2]
[346156430,1734759054630,-3032.04,0.00021872,2]
[346156431,1734759054639,-500.0,0.00021872,2]
[346156432,1734759054650,-500.0,0.00021872,2]
[346156433,1734759054660,-500.0,0.00021872,2]
[346156434,1734759054669,-500.0,0.00021872,2]
[346156435,1734759054679,-500.0,0.00021872,2]
[346156436,1734759054688,-500.0,0.00021872,2]
[346156437,1734759054698,-500.0,0.00021872,2]
[346156438,1734759054708,-500.0,0.00021872,2]
[346156439,1734759054717,-500.0,0.00021872,2]
[346156440,1734759054727,-500.0,0.00021872,2]
[346156441,1734759054737,-500.0,0.00021872,2]
[346156442,1734759054746,-500.0,0.00021872,2]
[346156443,1734759054756,-500.0,0.00021872,2]
[346156444,1734759054770,-500.0,0.00021872,2]
[346156445,1734759054779,-500.0,0.00021872,2]
[346156446,1734759054790,-500.0,0.00021872,2]
[346156447,1734759054800,-500.0,0.00021872,2]
[346156448,1734759054811,-500.0,0.00021872,2]
[346156449,1734759054820,-500.0,0.00021872,2]
[346156450,1734759054830,-500.0,0.00021872,2]
[346156451,1734759054840,-308.56316442,0.00021872,2]
[346156452,1734759054850,-510.2096869,0.00021872,2]